Cogmind - Beta 9.3 @@@ ROGUE MODE // 2019.12.29 @ 03:55:36 // Winter2019/RPGLIKE Player: Rumbl3 Result: Destroyed by A6 with Enhanced Force Lance Performance ------------- Evolutions (9) 4500 Regions Visited (32) 6400 Robots Destroyed (335) 1675 Value Destroyed (12459) 12459 Prototype IDs (51) 1020 Alien Tech Used (3) 600 Bonus (13269) 13269 TOTAL SCORE: 39923 Bonus ------- High Alert Combat Kills 1988 Follower Combat Kills 2689 Network Hubs Disabled 800 Met Data Miner 300 Met Imprinter 300 Destroyed Z-Imprinter 1000 Triggered Deep Caves Wall 1000 Exposed GOLEM Chamber 1500 Met Zhirov 300 Built Enhanced Grunts 300 A7 Reached Mainframe 300 Met R17 at Cetus 500 Met MAIN.C 5000 Hacked MAIN.C 300 Met Architect 300 Friendly Fire -3308 Cogmind --------- Core Integrity 0/2950 Matter 207/300 Energy 47/1100 System Corruption 16% Temperature Cool (6) Movement Hovering (22) Location -1/Access_0 Parts ------- > --- POWER (2) -------- Assembled Flux Generator > --- PROPULSION (4) --- Cooled Gravmag System Cooled Gravmag System Combat Linear Gravjet > --- UTILITY (13) ----- Assembled Biocell Array Zionite Metafield Generator Experimental Sensor Array Improved Signal Interpreter Advanced Terrain Scanner Assembled Combat Suite Advanced Targeting Computer Advanced Reaction Control System Improved Cloaking Device Assembled Alloy Armor Experimental Thermal Shield > --- WEAPON (4) ------- Assembled Focal Cannon Remote Datajack Nanosword Force Lance > --- INVENTORY (7) ---- Cooled Gravmag System PSU Rigger Enhanced Quantum Rifle Railgun Improved KE Penetrator Heavy Shock Bomb Launcher Scatter Rocket Array Peak State ------------ > --- POWER ------------ Assembled Flux Generator > --- PROPULSION ------- Cooled Gravmag System Cooled Gravmag System Cooled Gravmag System Combat Linear Gravjet > --- UTILITY ---------- Power Amplifier Assembled Biocell Array Zionite Metafield Generator Experimental Sensor Array Improved Signal Interpreter Advanced Terrain Scanner Assembled Combat Suite Advanced Targeting Computer Advanced Reaction Control System Improved Cloaking Device Assembled Alloy Armor Experimental Thermal Shield PSU Rigger > --- WEAPON ----------- Zionite Phaser-S Assembled Focal Cannon Improved KE Penetrator Force Lance > --- INVENTORY -------- Transdimensional Reconstructor Zionite Phaser-S Enhanced Quantum Rifle Railgun Heavy Shock Bomb Launcher Scatter Rocket Array Remote Datajack [Rating: 171] Favorites ----------- Power Assembled Flux Generator Engine Improved Deuterium Engine Reactor Assembled Flux Generator Propulsion Makeshift Hover Unit Leg Aluminum Leg Wheel Compact Wheel Hover Unit Makeshift Hover Unit Utility Advanced Terrain Scanner Device Advanced Terrain Scanner Storage Assembled Biocell Array Processor Improved Signal Interpreter Protection Assembled Alloy Armor Weapon Assembled Focal Cannon Energy Gun Medium Laser Energy Cannon Assembled Focal Cannon Ballistic Gun Coil Gun Launcher Shock Bomb Launcher Special Weapon Remote Datajack Impact Weapon Power Maul Slashing Weapon Great Axe Piercing Weapon Force Lance Build | -11 -10 -9 -9 -9 -8 -8 -7 -7 -7 -7 -6 -6 -6 -6 -6 -6 -5 -5 -5 -5 -5 -5 -4 -4 -4 -4 -3 -3 -2 -1 -1 -1 ------- Run | Scr Mat Mat Min Exi Min Mat Fac Low Low Dat Pro Fac Low Low Zio Dee Pro Fac Ext Cet Arc Hub Fac Upp Upp Zhi Pro Res Res Acc Com Ac0 Slots Evolved 18 | 3 . 1 . . 1 2 1 1 . . . . . . . 6 . . 1 . . . 1 . . . . 1 . . . . Power 1 | . . . . . . . . . . . . . . . . 1 . . . . . . . . . . . . . . . . Propulsion 3 | 1 . . . . . 1 . . . . . . . . . 1 . . . . . . . . . . . . . . . . Utility 12 | 1 . 1 . . . 1 1 1 . . . . . . . 4 . . 1 . . . 1 . . . . 1 . . . . Weapon 2 | 1 . . . . 1 . . . . . . . . . . . . . . . . . . . . . . . . . . . Parts Attached 161 | 4 5 3 . . 9 10 11 7 6 . 5 14 8 3 3 23 4 . 12 2 . 1 5 . 1 9 2 3 . 5 4 2 Power 4 | . . . . . 1 1 . . . . . . . . . 2 . . . . . . . . . . . . . . . . Engine 2 | . . . . . 1 1 . . . . . . . . . . . . . . . . . . . . . . . . . . Core . | . . . . . . . . . . . . . . . . . . . . . . . . . . . . . . . . . Reactor 2 | . . . . . . . . . . . . . . . . 2 . . . . . . . . . . . . . . . . Propulsion 17 | 2 2 . . . . 1 . . . . . . 1 . 1 2 . . . . . . 2 . . 4 . . . 1 . 1 Treads . | . . . . . . . . . . . . . . . . . . . . . . . . . . . . . . . . . Leg . | . . . . . . . . . . . . . . . . . . . . . . . . . . . . . . . . . Wheel 2 | 2 . . . . . . . . . . . . . . . . . . . . . . . . . . . . . . . . Hover 15 | . 2 . . . . 1 . . . . . . 1 . 1 2 . . . . . . 2 . . 4 . . . 1 . 1 Flight . | . . . . . . . . . . . . . . . . . . . . . . . . . . . . . . . . . Utility 54 | 1 3 1 . . 2 1 3 3 . . . 2 2 1 . 10 1 . 9 1 . . 3 . 1 3 2 2 . 3 . . Device 42 | . 1 1 . . 2 1 1 1 . . . 2 . 1 . 8 1 . 9 1 . . 3 . 1 3 2 2 . 2 . . Storage 1 | . . . . . . . . . . . . . . . . 1 . . . . . . . . . . . . . . . . Processor 6 | 1 2 . . . . . 1 1 . . . . . . . . . . . . . . . . . . . . . 1 . . Hackware . | . . . . . . . . . . . . . . . . . . . . . . . . . . . . . . . . . Protection 5 | . . . . . . . 1 1 . . . . 2 . . 1 . . . . . . . . . . . . . . . . Artifact . | . . . . . . . . . . . . . . . . . . . . . . . . . . . . . . . . . Weapon 86 | 1 . 2 . . 6 7 8 4 6 . 5 12 5 2 2 9 3 . 3 1 . 1 . . . 2 . 1 . 1 4 1 Energy Gun 12 | . . . . . 1 . . . . . . 3 1 1 1 3 . . . . . . . . . . . . . . 2 . Energy Cannon . | . . . . . . . . . . . . . . . . . . . . . . . . . . . . . . . . . Ballistic Gun 24 | 1 . 2 . . 1 3 2 . 1 . 2 2 . 1 . 3 2 . 1 1 . . . . . 2 . . . . . . Ballistic Cannon . | . . . . . . . . . . . . . . . . . . . . . . . . . . . . . . . . . Launcher 26 | . . . . . 2 2 2 2 3 . 2 4 2 . 1 2 . . 2 . . 1 . . . . . . . 1 . . Special Weapon 1 | . . . . . . . . . . . . . . . . . . . . . . . . . . . . . . . 1 . Impact Weapon 11 | . . . . . . . 4 2 2 . 1 2 . . . . . . . . . . . . . . . . . . . . Slashing Weapon 9 | . . . . . 1 2 . . . . . 1 2 . . 1 1 . . . . . . . . . . . . . . 1 Piercing Weapon 3 | . . . . . 1 . . . . . . . . . . . . . . . . . . . . . . 1 . . 1 . Special Melee Weapon . | . . . . . . . . . . . . . . . . . . . . . . . . . . . . . . . . . Unidentified Prototypes 18 | . . . . . . . . . . . . 2 1 . . 9 . . . 1 . . . . . 2 . . . . 1 2 Parts Lost 4 | . . . . . . . . . 1 . . . . . . . . . . . . . . . . . . . . . 2 1 Power . | . . . . . . . . . . . . . . . . . . . . . . . . . . . . . . . . . Propulsion . | . . . . . . . . . . . . . . . . . . . . . . . . . . . . . . . . . Utility 1 | . . . . . . . . . . . . . . . . . . . . . . . . . . . . . . . . 1 Weapon 3 | . . . . . . . . . 1 . . . . . . . . . . . . . . . . . . . . . 2 . Highest Loss Streak 1 | . . . . . . . . . 1 . . . . . . . . . . . . . . . . . . . . . 1 1 Average Slot Usage (%) 94 | . 93 100 100 100 100 100 100 100 97 100 100 100 99 100 100 97 90 90 89 90 90 90 89 90 90 90 90 90 91 92 92 82 Engine 3 | . 14 13 12 12 11 10 9 7 7 7 7 7 7 7 7 5 . . . . . . . . . . . . . . . . Reactor 2 | . . . . . . . . . . . . . . . . 3 5 5 4 4 4 4 4 4 4 4 4 4 4 4 4 4 Hover 20 | . 7 27 25 25 22 22 27 23 23 23 23 23 22 21 21 20 20 20 19 19 19 19 17 18 18 18 18 17 17 17 17 15 Device 29 | . 3 15 25 25 22 23 27 23 23 23 23 23 22 21 21 26 35 35 32 33 33 33 36 36 36 36 36 38 39 38 38 30 Storage 2 | . . . . . . . . . . . . . . . . 3 5 5 4 4 4 4 4 4 4 4 4 4 4 4 4 4 Processor 8 | . 19 13 12 12 11 10 9 13 15 15 15 15 14 14 14 9 5 5 4 4 4 4 4 4 4 4 4 4 4 5 8 8 Protection 3 | . . . . . . . . 7 7 7 7 7 7 7 7 4 . . 3 4 4 4 4 4 4 4 4 4 4 4 4 4 Energy Gun 2 | . 14 13 12 12 10 10 9 7 3 . . 2 . 1 7 . . . . . . . . . . . . . . . 1 . Energy Cannon 2 | . . . . . . . . . . . . . . . . . 4 5 4 4 4 4 4 4 4 4 4 4 4 4 4 4 Ballistic Gun 7 | . 14 13 12 12 12 15 10 7 8 7 7 8 14 12 7 7 6 5 4 4 4 4 4 4 4 4 4 4 4 4 1 . Launcher 4 | . . . . . 2 5 2 1 5 7 11 3 . 7 7 9 5 5 4 4 4 4 4 4 4 4 4 4 4 4 1 . Slashing Weapon 2 | . . . . . . . . . . . . . 5 7 7 2 3 5 4 4 4 4 4 4 4 4 4 2 . . . 1 Naked Turns . | . . . . . . . . . . . . . . . . . . . . . . . . . . . . . . . . . Heaviest Build 98 | 9 10 12 12 12 17 24 24 36 36 35 40 41 43 45 46 67 87 87 92 91 91 94 96 92 93 94 94 97 97 98 96 84 Greatest Support 116 | 37 37 17 17 17 17 38 38 38 38 38 38 38 49 49 60 82 87 87 97 97 97 97 102 102 102 103 98 98 98 113 113 116 Greatest Overweight (x) 2 | . . . . . . 1 . . . . 1 1 . . . 2 1 . . . . . . . . 1 . . . . . . Average Overweight (x) . | . . . . . . . . . . . . . . . . . . . . . . . . . . . . . . . . . Largest Inventory Capacity 7 | 2 2 3 3 3 3 4 4 4 4 4 4 4 4 4 4 4 5 5 6 6 6 6 6 6 6 6 6 7 7 7 7 7 Average Capacity 4 | 1 2 2 3 3 3 3 4 4 4 4 4 4 4 4 4 4 4 5 5 6 6 6 6 6 6 6 6 6 7 7 7 7 Most Carried 7 | 1 2 3 3 3 3 4 4 4 4 3 4 4 4 4 4 4 5 5 6 6 6 6 6 6 6 6 6 7 7 7 7 7 Average Carried 4 | . 1 2 2 3 2 3 3 4 3 3 3 3 3 3 3 3 4 4 5 6 6 6 6 6 6 5 6 6 7 6 6 6 Final Capacity 7 | 2 2 3 3 3 3 4 4 4 4 4 4 4 4 4 4 4 5 5 6 6 6 6 6 6 6 6 6 7 7 7 7 7 Final Carried 7 | 1 2 3 3 3 3 4 4 4 3 3 3 4 3 4 4 4 5 4 6 6 6 6 6 6 6 6 6 7 7 7 6 7 Class Distribution -------------------- 22% | Scavenger-Scout 12% | Scout 12% | Commander-Scout 12% | Derelict-Scout 9% | Hauler-Ninja 9% | Scavenger-Ninja 6% | Scavenger-Mutant 3% | Scavenger-Assassin 3% | Scavenger-Skirmisher Dominant Class ---------------- Mutant | -10/Materials Scavenger-Mutant | -9/Materials Scavenger-Mutant | -9/Mines Scavenger-Mutant | -9/Exiles Scavenger-Mutant | -8/Mines Scavenger-Scout | -8/Materials Scout | -7/Factory Scout | -7/Lower Caves Scout | -7/Lower Caves Scout | -7/Data Miner Scout | -6/Proximity Caves Derelict-Scout | -6/Factory Derelict-Scout | -6/Lower Caves Derelict-Scout | -6/Lower Caves Derelict-Scout | -6/Zion Scavenger-Scout | -6/Deep Caves Scavenger-Scout | -5/Proximity Caves Scavenger-Scout | -5/Factory Commander-Scout | -5/Extension Commander-Scout | -5/Cetus Commander-Scout | -5/Archives Commander-Scout | -5/Hub_04(d) Scavenger-Ninja | -4/Factory Scavenger-Ninja | -4/Upper Caves Scavenger-Scout | -4/Upper Caves Scout | -4/Zhirov Scavenger-Ninja | -3/Proximity Caves Hauler-Ninja | -3/Research Hauler-Ninja | -2/Research Hauler-Ninja | -1/Access Hauler-Ninja | -1/Command Hauler-Ninja | -1/Access_0 Resources | -11 -10 -9 -9 -9 -8 -8 -7 -7 -7 -7 -6 -6 -6 -6 -6 -6 -5 -5 -5 -5 -5 -5 -4 -4 -4 -4 -3 -3 -2 -1 -1 -1 ----------- Run | Scr Mat Mat Min Exi Min Mat Fac Low Low Dat Pro Fac Low Low Zio Dee Pro Fac Ext Cet Arc Hub Fac Upp Upp Zhi Pro Res Res Acc Com Ac0 Matter Collected 6393 | 306 119 49 . . 168 305 424 121 155 . 246 259 207 81 56 595 1033 49 491 122 32 188 125 35 71 91 60 292 269 157 287 . Remotely . | . . . . . . . . . . . . . . . . . . . . . . . . . . . . . . . . . Salvage Created 15377 | 186 304 200 . . 213 366 605 821 537 . 300 444 275 236 . 735 2438 196 1480 480 226 1765 346 126 319 92 168 440 1248 544 287 . Parts 705 | 16 18 14 . . 20 34 22 11 18 . 13 20 8 7 . 34 85 14 63 38 6 80 28 3 16 . 24 31 42 28 12 . Haulers Intercepted 8 | . 2 1 . . . . . . . . . 1 . . . . . . . . . 3 . . . . . . 1 . . . Recyclers Shooed 7 | . 1 . . . . . . . . . . . . . . . . . . . . . 3 . . . . . 3 . . . Parts Field Recycled . | . . . . . . . . . . . . . . . . . . . . . . . . . . . . . . . . . Retrieved Matter . | . . . . . . . . . . . . . . . . . . . . . . . . . . . . . . . . . Parts Self-Destructed 100 | . . . . . . . . 8 9 . 15 . 4 1 . . 44 . . . . . . . 6 . 13 . . . . . Prevented 69 | . . . . . . . . 1 6 . 6 . . 3 . . 44 . . . . . . 3 . . 6 . . . . . Kills | -11 -10 -9 -9 -9 -8 -8 -7 -7 -7 -7 -6 -6 -6 -6 -6 -6 -5 -5 -5 -5 -5 -5 -4 -4 -4 -4 -3 -3 -2 -1 -1 -1 ------- Run | Scr Mat Mat Min Exi Min Mat Fac Low Low Dat Pro Fac Low Low Zio Dee Pro Fac Ext Cet Arc Hub Fac Upp Upp Zhi Pro Res Res Acc Com Ac0 Combat Hostiles Destroyed 251 | . 4 5 . . 7 12 6 6 9 . 11 6 1 3 . 47 39 5 20 8 2 14 6 1 6 . 7 9 7 9 1 . Melee 5 | . . . . . . 1 . . . . . . . . . 2 2 . . . . . . . . . . . . . . . Guns 68 | . 4 5 . . 4 5 6 1 4 . 1 3 1 1 . 3 6 1 6 2 1 4 1 . 2 . 1 4 1 1 . . Cannons 48 | . . . . . . . . . . . . . . . . . 12 . 12 2 1 8 5 . 1 . 1 1 1 3 1 . AOE 122 | . . . . . 3 6 . 5 5 . 10 3 . 2 . 42 17 4 2 4 . 2 . . 3 . 5 3 1 5 . . Classes Destroyed 21 | 3 4 1 . . . 1 1 2 . . . . 1 . . 2 3 . . . . 2 . . 1 . . . . . . . Worker 17 | 1 . . . . 2 . 2 . . . . . . . . . . 2 . . . 6 . . . . . . 1 2 1 . Builder 5 | . . . . . . . . . . . . . . . . . . . . . . 3 . . . . . . 1 1 . . Tunneler 8 | 5 . . . . 3 . . . . . . . . . . . . . . . . . . . . . . . . . . . Hauler 8 | . 2 1 . . . . . . . . . 1 . . . . . . . . . 3 . . . . . . 1 . . . Recycler 8 | 1 1 . . . 1 . 2 . . . . . . . . . . . 1 . . 1 . . . . . . 1 . . . Mechanic 1 | . . . . . . . . . . . . . . . . . 1 . . . . . . . . . . . . . . . Operator 3 | . . . . . . 1 . . . . . . . . . . . 1 . . . 1 . . . . . . . . . . Watcher 18 | . 2 1 . . . . 2 . . . . 1 . . . . . . 1 2 . 3 2 . . . . 1 3 . . . Swarmer 52 | . 3 . . . 4 4 . 3 4 . 7 2 . 3 . . 6 4 1 3 . . . . . . 4 3 . . 1 . Grunt 59 | . 1 4 . . 3 4 3 2 3 . 4 3 . . . . 17 1 9 . . 4 1 . . . . . . . . . Brawler 8 | . . . . . . . . . 1 . . . . . . . 5 . 2 . . . . . . . . . . . . . Duelist 4 | . . . . . . . . 1 . . . . . . . . 3 . . . . . . . . . . . . . . . Sentry 39 | . . 1 . . . 4 2 . . . . 1 . . . . 1 . 6 . 2 7 3 1 . . 1 4 2 4 . . Demolisher 1 | . . . . . . . . . . . . . . . . . . . . . . 1 . . . . . . . . . . Hunter 16 | . . . . . . . . . . . . . . . . . 4 . . 1 . . . . 2 . . 2 5 2 . . Programmer 14 | . . . . . . . 1 . 1 . . . 1 . . . 2 . . . . 2 2 . . . 2 . . 3 . . Behemoth 3 | . . . . . . . . . . . . . . . . . 1 . 2 . . . . . . . . . . . . . Cetus Guard 4 | . . . . . . . . . . . . . . . . . . . . 4 . . . . . . . . . . . . Enhanced Grunt 4 | . . . . . . . . . . . . . . . . . . . . . . 4 . . . . . . . . . . Z-Technician 5 | . . . . . . . . . . . . . . . . 5 . . . . . . . . . . . . . . . . Z-Light 8 | . . . . . . . . . . . . . . . . 8 . . . . . . . . . . . . . . . . Samaritan 2 | . . . . . . . . . . . . . 2 . . . . . . . . . . . . . . . . . . . Assembled 38 | . . . . . . . . . . . . . . . . 38 . . . . . . . . . . . . . . . . Thug 3 | . . . . . . . . . . . . . . . . . . . . 1 . 1 . . 1 . . . . . . . Savage 2 | . . . . . . . . 1 . . . . . . . . . . . . . 1 . . . . . . . . . . Butcher 1 | . . . . . . . . . . . . . . . . 1 . . . . . . . . . . . . . . . . Fireman 3 | . . . . . . . . . . . . . . . . . . . . . . . . . 3 . . . . . . . Best Kill Streak 34 | 2 3 3 . . 6 4 5 3 4 . 4 3 1 3 . 34 5 7 4 4 2 7 3 1 4 . 4 3 3 4 1 . Combat Bots Only 34 | . 3 3 . . 4 4 4 3 4 . 4 3 1 3 . 34 4 5 4 4 2 3 2 1 4 . 4 3 2 4 1 . Max Kills in Single Turn 31 | 1 1 1 . . 3 3 1 2 2 . 2 2 1 1 . 31 2 3 2 4 1 8 1 1 3 . 2 1 1 2 1 . Gunslinging 1 | . . . . . . . . . 1 . . . . . . . . . . . . . . . . . . . . . . . Exploded 31 | . . . . . 1 3 . 2 2 . 2 2 . 1 . 31 2 2 1 3 . 2 . . 3 . 2 1 1 2 . . Melee 1 | . . . . . . 1 . . . . . . . . . 1 1 . . . . . . . . . . . . . . . Uniques/NPCs Destroyed 1 | . . . . . . . . . . . . . . . . 1 . . . . . . . . . . . . . . . . Z-Imprinter (-6/Deep Caves) Combat | -11 -10 -9 -9 -9 -8 -8 -7 -7 -7 -7 -6 -6 -6 -6 -6 -6 -5 -5 -5 -5 -5 -5 -4 -4 -4 -4 -3 -3 -2 -1 -1 -1 -------- Run | Scr Mat Mat Min Exi Min Mat Fac Low Low Dat Pro Fac Low Low Zio Dee Pro Fac Ext Cet Arc Hub Fac Upp Upp Zhi Pro Res Res Acc Com Ac0 Damage Taken 13955 | . 111 183 . . 238 265 562 66 156 . 421 548 14 144 . 717 2204 323 747 378 66 744 347 . 407 . 294 98 1409 996 1740 777 Core 11156 | . 88 143 . . 188 214 451 51 120 . 338 428 11 116 . 590 1750 247 580 293 50 613 275 . 318 . 229 80 1165 788 1417 613 Absorbed by Shields 514 | . . . . . . . . . . . . . . . . . . . 324 179 11 . . . . . . . . . . . Redirected to Core 9743 | . 70 132 . . 176 185 349 51 120 . 299 372 11 98 . 467 1606 247 536 284 50 465 254 . 305 . 229 61 892 751 1236 497 Core Remaining (%) 83 | 100 100 . . . 100 97 . . . . 100 . . . . . 73 . . . . 65 . . . . 85 100 17 . . . Volleys Fired 645 | 22 23 15 . . 14 29 29 8 13 . 21 38 3 11 . 24 108 10 64 18 8 41 17 5 14 . 11 19 40 23 17 . Largest 4 | 2 2 2 . . 3 3 3 2 3 . 2 3 3 2 . 4 4 3 3 3 2 3 3 1 3 . 3 3 3 3 3 . Hottest 180 | 70 70 73 . . 105 111 111 75 111 . 69 105 130 66 . 180 119 91 94 96 60 106 106 46 106 . 106 106 106 110 145 . Shots Fired 1352 | 44 46 30 . . 40 78 76 9 26 . 30 61 9 17 . 52 244 21 123 40 16 79 35 5 31 . 25 38 88 60 29 . Gun 764 | 44 46 30 . . 37 66 66 2 19 . 5 50 9 8 . 32 93 10 55 13 8 41 17 . 13 . 9 15 32 23 21 . Cannon 289 | . . . . . . . . . . . . . . . . . 63 5 50 17 8 36 17 . 13 . 8 13 29 23 7 . Launcher 298 | . . . . . 3 12 10 7 7 . 25 11 . 9 . 20 88 6 18 10 . 2 1 5 5 . 8 10 27 14 . . Special 1 | . . . . . . . . . . . . . . . . . . . . . . . . . . . . . . . 1 . Kinetic 602 | 22 23 15 . . 25 42 39 1 11 . 5 41 6 8 . 28 93 10 55 13 8 41 17 . 13 . 9 15 32 23 7 . Thermal 437 | 22 23 15 . . 12 24 27 1 8 . . 9 3 . . 4 63 5 50 17 8 36 17 . 13 . 8 13 29 23 7 . Explosive 24 | . . . . . 3 . . 2 3 . 9 . . . . 5 . . . . . . . . . . . . . 2 . . Electromagnetic 274 | . . . . . . 12 10 5 4 . 16 11 . 9 . 15 88 6 18 10 . 2 1 5 5 . 8 10 27 12 . . Phasic 14 | . . . . . . . . . . . . . . . . . . . . . . . . . . . . . . . 14 . Robot Hit Streak 38 | 8 7 27 . . 7 16 11 3 15 . 9 12 10 4 . 5 38 7 38 9 12 18 9 . 13 . 15 10 17 25 26 . Robot Miss Streak 7 | 7 5 1 . . 3 2 2 2 2 . 5 5 1 1 . 4 6 2 3 1 1 2 1 . 1 . 1 2 4 3 . . Penetration Max 1 | . . . . . . . . . . . . 1 . 1 . 1 1 1 1 1 . 1 1 . 1 . . . 1 . . . Secondary Targets 3 | . . . . . 1 . . . 1 . . 1 . . . . . . . . . . . . . . . . . . . . Max Gunslinging Chain 1 | . . . . . 1 . . . 1 . . 1 . . . . . . . . . . . . . . . . . . . . Shots Hit Robots 958 | 24 24 27 . . 28 59 58 14 24 . 17 44 17 15 . 28 142 13 89 29 13 59 28 . 23 3 20 23 58 46 29 4 Core Hits 737 | 8 13 13 . . 21 24 30 11 19 . 29 20 4 12 . 145 90 16 49 27 5 51 15 2 15 2 14 19 32 44 6 1 Critical Hits 41 | . . . . . . . . . . . . 1 . 1 . 1 3 . 6 1 2 10 2 . 3 . 2 2 2 5 . . Critical Kills 11 | . . . . . . . . . . . . . . . . . . . 2 1 . 2 1 . 1 . . 2 1 1 . . Critical Parts Destroyed 24 | . . . . . . . . . . . . 1 . 1 . . 3 . 2 . 1 7 1 . 2 . 2 . 1 3 . . Melee Attacks 328 | . . . . . 9 7 20 23 7 . 3 15 18 7 . 23 23 7 3 . . 16 11 2 5 3 3 30 31 31 23 8 Impact 66 | . . . . . . . 18 23 7 . 3 15 . . . . . . . . . . . . . . . . . . . . Slashing 154 | . . . . . 1 7 2 . . . . . 18 7 . 23 23 7 3 . . 16 11 2 5 3 3 18 . . . 5 Piercing 108 | . . . . . 8 . . . . . . . . . . . . . . . . . . . . . . 12 31 31 23 3 Sneak Attacks 29 | . . . . . 4 . 2 4 . . . . 4 . . . 1 . 1 . . 5 5 . . . . . 1 1 1 . Combat Hostiles . | . . . . . . . . . . . . . . . . . . . . . . . . . . . . . . . . . Follow-up Attacks . | . . . . . . . . . . . . . . . . . . . . . . . . . . . . . . . . . Damage Inflicted 49571 | 293 323 362 . . 1109 1214 1249 1275 1428 . 1365 1244 1138 1180 . 6474 6613 1038 3645 1819 471 4694 1715 86 1059 339 906 1131 3089 2524 1628 160 Guns 10918 | 293 323 362 . . 344 780 765 12 301 . 60 897 152 115 . 353 1355 240 977 319 182 643 297 . 265 . 199 228 561 416 479 . Cannons 11499 | . . . . . . . . . . . . . . . . . 2434 195 2280 553 289 1412 735 . 538 . 318 537 1032 954 222 . Explosions 19001 | . . . . . 203 354 136 472 577 . 1305 301 . 331 . 5456 2585 603 299 947 . 1966 110 86 256 . 389 366 1282 977 . . Melee 8043 | . . . . . 562 34 348 791 550 . . 46 986 734 . 665 239 . 89 . . 673 573 . . 339 . . 150 177 927 160 Ramming 110 | . . . . . . 46 . . . . . . . . . . . . . . . . . . . . . . 64 . . . Kinetic 8999 | 118 121 171 . . 283 541 492 . 189 . 60 720 124 115 . 333 1355 240 977 319 182 643 297 . 265 . 199 228 561 416 50 . Thermal 16586 | 175 202 191 . . 61 285 273 43 245 . . 177 28 54 . 2140 2711 458 2280 1014 289 1412 845 . 538 . 318 537 1134 954 222 . Explosive 4862 | . . . . . 203 . . 221 288 . 819 . . . . 2713 . . . . . . . . . . . . 100 518 . . Electromagnetic 10542 | . . . . . . 308 136 220 156 . 486 301 . 277 . 623 2308 340 299 486 . 1966 . 86 256 . 389 366 1080 459 . . Impact 1735 | . . . . . . . 348 791 550 . . 46 . . . . . . . . . . . . . . . . . . . . Slashing 4526 | . . . . . 34 34 . . . . . . 986 734 . 665 239 . 89 . . 673 573 . . 339 . . . . . 160 Piercing 1782 | . . . . . 528 . . . . . . . . . . . . . . . . . . . . . . . 150 177 927 . Phasic 429 | . . . . . . . . . . . . . . . . . . . . . . . . . . . . . . . 429 . Highest Corruption 16 | . . . . . . . 1 1 1 1 1 . . . . 1 5 . 1 1 1 5 . . . . . . 3 2 16 16 Average Corruption 1 | . . . . . . . 1 1 1 1 1 . . . . 1 2 . 1 1 1 1 . . . . . . 1 1 7 16 Corruption Purged . | . . . . . . . . . . . . . . . . . . . . . . . . . . . . . . . . . Effects 74 | . . . . . . . . . 1 1 . . . . . 5 30 . 2 2 . 2 . . . . . . 6 . 13 12 Message Errors 15 | . . . . . . . . . . 1 . . . . . 4 5 . 1 . . . . . . . . . 2 . 1 1 Matter Fused 8 | . . . . . . . . . . . . . . . . . 5 . . . . . . . . . . . . . 2 1 Heat Flow Errors 8 | . . . . . . . . . . . . . . . . . 4 . . . . . . . . . . . 2 . 1 1 Energy Discharges 10 | . . . . . . . . . 1 . . . . . . 1 4 . . 1 . 1 . . . . . . 1 . 1 . Data Loss (minor) 8 | . . . . . . . . . . . . . . . . . 5 . . 1 . . . . . . . . . . 2 . Misfires 1 | . . . . . . . . . . . . . . . . . . . . . . . . . . . . . . . 1 . Misdirections 8 | . . . . . . . . . . . . . . . . . . . . . . . . . . . . . . . 1 7 Targeting Errors 14 | . . . . . . . . . . . . . . . . . 6 . 1 . . 1 . . . . . . 1 . 3 2 Weapon Failures 2 | . . . . . . . . . . . . . . . . . 1 . . . . . . . . . . . . . 1 . Overload Shots . | . . . . . . . . . . . . . . . . . . . . . . . . . . . . . . . . . Overflow Damage 4099 | . . . . . 148 6 136 383 353 . 8 3 641 287 . 850 303 13 52 54 . 213 330 . 14 95 . 62 112 3 33 . Projectiles 461 | . . . . . . . 44 . . . . . . . . . 162 13 52 7 . 22 16 . 14 . . 62 69 . . . Explosions 827 | . . . . . . . . . . . 8 . . . . 572 29 . . 47 . 125 . . . . . . 43 3 . . Melee 2811 | . . . . . 148 6 92 383 353 . . 3 641 287 . 278 112 . . . . 66 314 . . 95 . . . . 33 . Knockbacks 2 | . . . . . . 1 . 1 . . . . . . . . . . . . . . . . . . . . . . . . Impact 2 | . . . . . . 1 . 1 . . . . . . . . . . . . . . . . . . . . . . . . Kinetic . | . . . . . . . . . . . . . . . . . . . . . . . . . . . . . . . . . Secondary . | . . . . . . . . . . . . . . . . . . . . . . . . . . . . . . . . . Self-Inflicted Damage 701 | . . . . . 28 31 31 15 5 . 36 21 . 5 . 20 63 24 . . . 230 56 . . . . . 125 11 . . Shots 31 | . . . . . 1 1 2 1 1 . 2 2 . 1 . 2 7 2 . . . 3 1 . . . . . 4 1 . . Rammed 2 | . . . . . . 1 . . . . . . . . . . . . . . . . . . . . . . 1 . . . Targets Rammed 2 | . . . . . . 1 . . . . . . . . . . . . . . . . . . . . . . 1 . . . Kicked . | . . . . . . . . . . . . . . . . . . . . . . . . . . . . . . . . . Crushed . | . . . . . . . . . . . . . . . . . . . . . . . . . . . . . . . . . Highest Temperature 416 | 54 36 225 . . 322 135 291 30 137 . 59 416 183 42 . 290 252 10 12 36 . 33 30 . 136 . . . 174 . 115 111 Average Temperature 66 | 17 12 86 . . 152 57 128 11 65 . 24 147 91 21 . 62 44 4 4 13 . 15 12 . 62 . . . 84 . 39 69 Received Heat Transfer 1928 | . 12 99 . . 90 90 174 9 9 . 105 132 . 27 . 126 438 63 99 69 13 45 45 . 40 . 27 . 45 81 72 18 Siege Activations . | . . . . . . . . . . . . . . . . . . . . . . . . . . . . . . . . . Robots Corrupted 12 | . . . . . . . . . . . . . . . . . 2 . . . . 4 . 1 . . . 1 4 . . . Combat Hostiles 8 | . . . . . . . . . . . . . . . . . 2 . . . . . . 1 . . . 1 4 . . . Parts Fried 53 | . . . . . . 2 3 1 1 . . . . . . 1 9 . 3 . . 15 . 2 3 . 5 3 5 . . . Impact Corruptions 47 | . . . . . . 1 6 23 16 . . 1 . . . . . . . . . . . . . . . . . . . . Robots Melted . | . . . . . . . . . . . . . . . . . . . . . . . . . . . . . . . . . Combat Hostiles . | . . . . . . . . . . . . . . . . . . . . . . . . . . . . . . . . . Parts Melted 9 | 1 . 1 . . . 1 3 . . . . . . . . . . 1 1 . 1 . . . . . . . . . . . Heat Transferred 11618 | 518 592 555 . . 185 803 777 87 446 . . 400 50 50 . 37 1525 450 1225 600 150 750 475 . 300 . 150 275 600 525 93 . Parts Sabotaged . | . . . . . . . . . . . . . . . . . . . . . . . . . . . . . . . . . Parts Stolen . | . . . . . . . . . . . . . . . . . . . . . . . . . . . . . . . . . Parts Stripped . | . . . . . . . . . . . . . . . . . . . . . . . . . . . . . . . . . Power Chain Reactions 25 | . . . . . . 1 1 1 1 . . . . 1 . 1 3 3 2 5 . 1 1 . . . 2 . 1 1 . . Missiles Intercepted . | . . . . . . . . . . . . . . . . . . . . . . . . . . . . . . . . . Alert | -11 -10 -9 -9 -9 -8 -8 -7 -7 -7 -7 -6 -6 -6 -6 -6 -6 -5 -5 -5 -5 -5 -5 -4 -4 -4 -4 -3 -3 -2 -1 -1 -1 ------- Run | Scr Mat Mat Min Exi Min Mat Fac Low Low Dat Pro Fac Low Low Zio Dee Pro Fac Ext Cet Arc Hub Fac Upp Upp Zhi Pro Res Res Acc Com Ac0 Peak Influence 2118 | 35 233 311 63 . 214 507 446 . . . . 716 . . . . . 299 1124 829 509 2118 1340 . . . . 675 813 641 610 . Average Influence 466 | 15 162 210 63 . 63 250 278 . . . . 427 . . . . . 244 479 629 478 915 1154 . . . . 420 506 405 508 . Maximum Alert Level 5 | . 1 1 . . 1 2 2 . . . . 3 . . . . . 1 4 3 2 5 4 . . . . 2 3 2 2 . Low Security (%) 26 | 100 70 50 100 . 91 43 24 . . . . 24 . . . . . 27 30 . . 2 . . . . . 23 1 6 . . Level 1 24 | . 30 50 . . 8 44 59 . . . . 11 . . . . . 72 23 25 11 7 . . . . . 13 39 45 10 . Level 2 30 | . . . . . . 11 16 . . . . 61 . . . . . . 21 36 88 30 . . . . . 63 36 48 89 . Level 3 12 | . . . . . . . . . . . . 2 . . . . . . 16 38 . 30 56 . . . . . 23 . . . Level 4 4 | . . . . . . . . . . . . . . . . . . . 8 . . 15 43 . . . . . . . . . Level 5 1 | . . . . . . . . . . . . . . . . . . . . . . 12 . . . . . . . . . . High Security . | . . . . . . . . . . . . . . . . . . . . . . . . . . . . . . . . . Max Security . | . . . . . . . . . . . . . . . . . . . . . . . . . . . . . . . . . Squads Dispatched 43 | . 1 . . . . 2 . . . . . 8 . . . . 1 4 4 . . 6 3 . . . . 4 4 5 1 . Investigation 16 | . . . . . . 1 . . . . . 3 . . . . . 1 3 . . 2 . . . . . 2 2 2 . . Extermination 3 | . . . . . . . . . . . . . . . . . . . . . . 1 . . . . . . 1 1 . . Reinforcement 15 | . 1 . . . . 1 . . . . . 3 . . . . . 2 1 . . 1 2 . . . . 2 . 1 1 . Assault 4 | . . . . . . . . . . . . . . . . . 1 . . . . 1 1 . . . . . 1 . . . Garrison 5 | . . . . . . . . . . . . 2 . . . . . 1 . . . 1 . . . . . . . 1 . . Intercept . | . . . . . . . . . . . . . . . . . . . . . . . . . . . . . . . . . Construction Impeded 3 | . . . . . . . . . . . . 1 . . . . . . 1 . . . 1 . . . . . . . . . Haulers Reinforced 5 | . . . . . . . . . . . . 2 . . . . . 2 . . . . . . . . . . . 1 . . Stealth | -11 -10 -9 -9 -9 -8 -8 -7 -7 -7 -7 -6 -6 -6 -6 -6 -6 -5 -5 -5 -5 -5 -5 -4 -4 -4 -4 -3 -3 -2 -1 -1 -1 --------- Run | Scr Mat Mat Min Exi Min Mat Fac Low Low Dat Pro Fac Low Low Zio Dee Pro Fac Ext Cet Arc Hub Fac Upp Upp Zhi Pro Res Res Acc Com Ac0 Distress Signals 16 | . 1 1 . . . . . . . . . 2 . . . . . 2 . 1 . 1 . . . . . 2 2 . 4 . Communications Jammed . | . . . . . . . . . . . . . . . . . . . . . . . . . . . . . . . . . Distress Signals . | . . . . . . . . . . . . . . . . . . . . . . . . . . . . . . . . . Times Spotted 460 | . 11 7 . . 7 17 10 7 8 . 14 21 1 7 . 51 66 18 38 17 4 31 9 . 6 . 13 8 34 17 28 10 Peak Tracking Total 38 | . 5 3 . . 4 5 4 3 4 . 4 4 1 3 . 38 9 11 6 6 2 10 3 1 4 . 10 2 11 5 13 10 Tactical Retreats 42 | . 1 . . . . 1 . 1 . . 1 2 . 2 . 2 13 3 2 . . 1 . . . . . . 6 3 4 . Traps | -11 -10 -9 -9 -9 -8 -8 -7 -7 -7 -7 -6 -6 -6 -6 -6 -6 -5 -5 -5 -5 -5 -5 -4 -4 -4 -4 -3 -3 -2 -1 -1 -1 ------- Run | Scr Mat Mat Min Exi Min Mat Fac Low Low Dat Pro Fac Low Low Zio Dee Pro Fac Ext Cet Arc Hub Fac Upp Upp Zhi Pro Res Res Acc Com Ac0 Traps Triggered 9 | . . . . . . . . . . . . . . . . . . . 4 . . . . . . . . . 4 . 1 . Indirectly 2 | . . . . . . . . . . . . . . . . . . . . . . . . . . . . . 2 . . . Trap Hack Attempts . | . . . . . . . . . . . . . . . . . . . . . . . . . . . . . . . . . Triggered . | . . . . . . . . . . . . . . . . . . . . . . . . . . . . . . . . . Disarmed . | . . . . . . . . . . . . . . . . . . . . . . . . . . . . . . . . . Reprogrammed 10 | . . . . . . . . . . . . . . . . . . 6 . . . . . . . . . 4 . . . . Reused . | . . . . . . . . . . . . . . . . . . . . . . . . . . . . . . . . . Traps Extracted . | . . . . . . . . . . . . . . . . . . . . . . . . . . . . . . . . . Installed . | . . . . . . . . . . . . . . . . . . . . . . . . . . . . . . . . . Triggered 2 | . . . . . . . . . . . . . . . . . . . . . . . . 2 . . . . . . . . Power Sources Rigged 40 | . . . . . . . . . . . . . . . . . 12 1 7 . . . . . 1 . 1 7 6 5 . . Exploded 7 | . . . . . . . . . . . . . . . . . 4 . . . . . . . . . . 3 . . . . Machines | -11 -10 -9 -9 -9 -8 -8 -7 -7 -7 -7 -6 -6 -6 -6 -6 -6 -5 -5 -5 -5 -5 -5 -4 -4 -4 -4 -3 -3 -2 -1 -1 -1 ---------- Run | Scr Mat Mat Min Exi Min Mat Fac Low Low Dat Pro Fac Low Low Zio Dee Pro Fac Ext Cet Arc Hub Fac Upp Upp Zhi Pro Res Res Acc Com Ac0 Machines Disabled 56 | . 1 . . . . 2 1 . . . . 5 . . . 4 1 . 6 . 2 12 6 . . . 2 . 6 4 2 2 Max in Single Turn 6 | . 1 . . . . 1 1 . . . . 1 . . . 2 1 . 2 . . 6 5 . . . 2 . 2 2 1 1 Garrison Access 7 | . . . . . . . . . . . . 1 . . . . . . . . . 1 1 . . . . 2 1 1 . . Network Hub 4 | . . . . . . . . . . . . . . . . . . . . . . 4 . . . . . . . . . . Energy Cycler 1 | . . . . . . . . . . . . . . . . . . . 1 . . . . . . . . . . . . . Machines Sabotaged . | . . . . . . . . . . . . . . . . . . . . . . . . . . . . . . . . . Garrisons Compromised . | . . . . . . . . . . . . . . . . . . . . . . . . . . . . . . . . . Overloaded Fab Kills . | . . . . . . . . . . . . . . . . . . . . . . . . . . . . . . . . . Fab Network Shutdowns 1 | . . . . . . . . . . . . . . . . . . . . . . . . . . . . 1 . . . . Hacking | -11 -10 -9 -9 -9 -8 -8 -7 -7 -7 -7 -6 -6 -6 -6 -6 -6 -5 -5 -5 -5 -5 -5 -4 -4 -4 -4 -3 -3 -2 -1 -1 -1 --------- Run | Scr Mat Mat Min Exi Min Mat Fac Low Low Dat Pro Fac Low Low Zio Dee Pro Fac Ext Cet Arc Hub Fac Upp Upp Zhi Pro Res Res Acc Com Ac0 Machines Accessed 98 | . 2 2 . 3 . 4 2 2 . 4 . 6 2 1 1 . . 3 13 4 1 11 4 1 . 6 1 8 6 7 4 . Terminals 59 | . 2 2 . . . 3 1 1 . . . 2 . . . . . 3 13 4 . 9 2 . . . 1 4 4 5 3 . Fabricators 4 | . . . . . . . . . . . . 2 . . . . . . . . . . 1 . . . . 1 . . . . Repair Stations . | . . . . . . . . . . . . . . . . . . . . . . . . . . . . . . . . . Recycling Units 6 | . . . . . . 1 1 . . . . 1 . . . . . . . . . . . . . . . . 1 1 1 . Scanalyzers 1 | . . . . . . . . . . . . . . . . . . . . . . . . . . . . 1 . . . . Garrison Access 8 | . . . . . . . . . . . . 1 . . . . . . . . . 2 1 . . . . 2 1 1 . . Total Hacks 398 | . 8 12 . 21 . 14 6 2 . 23 . 17 5 1 5 . . 19 54 16 1 41 22 1 . 19 9 30 38 22 12 . Successful 236 | . 6 10 . 21 . 11 4 2 . 23 . 7 5 1 5 . . 11 29 11 1 14 10 1 . 19 7 14 14 7 3 . Failed 161 | . 2 2 . . . 3 2 . . . . 10 . . . . . 8 25 5 . 27 12 . . . 2 16 24 14 9 . Catastrophic 37 | . 1 . . . . 1 . . . . . 3 . . . . . . 2 1 . 3 2 . . . . 6 7 7 4 . Database Lockouts 1 | . . . . . . . . . . . . . . . . . . . . . . . . . . . . . . 1 . . Manual 216 | . 5 7 . . . 10 1 . . . . 8 . . 5 . . 13 46 14 . 24 13 . . . 4 15 26 17 8 . Terminals 274 | . 8 12 . . . 12 2 1 . . . 6 . . . . . 19 54 16 . 35 18 . . . 9 23 35 18 6 . Fabricators 10 | . . . . . . . . . . . . 6 . . . . . . . . . . 2 . . . . 2 . . . . Repair Stations . | . . . . . . . . . . . . . . . . . . . . . . . . . . . . . . . . . Recycling Units 20 | . . . . . . 2 4 . . . . 3 . . . . . . . . . . . . . . . . 2 3 6 . Scanalyzers 1 | . . . . . . . . . . . . . . . . . . . . . . . . . . . . 1 . . . . Garrison Access 16 | . . . . . . . . . . . . 2 . . . . . . . . . 6 2 . . . . 4 1 1 . . Terminal Hacks 153 | . 3 7 . 21 . 5 1 2 . 23 . . 5 1 5 . . 7 14 6 1 7 3 1 . 19 5 7 7 2 1 . Record 51 | . . . . 21 . . . 1 . 11 . . 4 . . . . . . . 1 . . . . 7 5 1 . . . . Part Schematic 13 | . . . . . . . . . . 4 . . . . 5 . . . . . . . . . . 4 . . . . . . Robot Schematic 5 | . . . . . . . . . . 5 . . . . . . . . . . . . . . . . . . . . . . Robot Analysis 6 | . . 1 . . . . . . . . . . . . . . . . . . . . . . . 4 . . . 1 . . Prototype ID Bank 12 | . . 1 . . . . . . . 3 . . . . . . . 1 2 . . . . . . 4 . 1 . . . . Open Door 7 | . . . . . . . . 1 . . . . 1 1 . . . 1 . 1 . . . 1 . . . . . . 1 . Level Access Points 4 | . 1 . . . . 1 . . . . . . . . . . . . . . . . . . . . . 1 1 . . . Branch Access Points 9 | . 1 1 . . . 1 1 . . . . . . . . . . 1 . . . 1 1 . . . . . 1 1 . . Terminal Index 4 | . . . . . . 1 . . . . . . . . . . . 1 1 . . 1 . . . . . . . . . . Alert Level 15 | . . 1 . . . 1 . . . . . . . . . . . 1 6 2 . 1 1 . . . . 2 . . . . Unreport Threat 17 | . . 1 . . . . . . . . . . . . . . . 1 4 3 . 2 1 . . . . 1 4 . . . Locate Traps 4 | . 1 1 . . . 1 . . . . . . . . . . . . . . . 1 . . . . . . . . . . Reprogram Traps 2 | . . . . . . . . . . . . . . . . . . 1 . . . . . . . . . 1 . . . . Dispatch Records 1 | . . 1 . . . . . . . . . . . . . . . . . . . . . . . . . . . . . . Recall Investigation 1 | . . . . . . . . . . . . . . . . . . . . . . 1 . . . . . . . . . . Registered Components 1 | . . . . . . . . . . . . . . . . . . . 1 . . . . . . . . . . . . . Zone Layout 1 | . . . . . . . . . . . . . . . . . . . . . . . . . . . . . 1 . . . Fabricator Hacks 6 | . . . . . . . . . . . . 2 . . . . . . . . . . 2 . . . . 2 . . . . Load Schematic 4 | . . . . . . . . . . . . 2 . . . . . . . . . . 1 . . . . 1 . . . . Build 2 | . . . . . . . . . . . . . . . . . . . . . . . 1 . . . . 1 . . . . Repair Station Hacks . | . . . . . . . . . . . . . . . . . . . . . . . . . . . . . . . . . Recycling Unit Hacks 6 | . . . . . . 1 2 . . . . . . . . . . . . . . . . . . . . . 1 1 1 . Report Inventory 4 | . . . . . . 1 1 . . . . . . . . . . . . . . . . . . . . . 1 1 . . Retrieve Components 2 | . . . . . . . 1 . . . . . . . . . . . . . . . . . . . . . . . 1 . Scanalyzer . | . . . . . . . . . . . . . . . . . . . . . . . . . . . . . . . . . Garrison Access Hacks 7 | . . . . . . . . . . . . 1 . . . . . . . . . 1 1 . . . . 2 1 1 . . Seal Access 7 | . . . . . . . . . . . . 1 . . . . . . . . . 1 1 . . . . 2 1 1 . . Unauthorized Hacks 190 | . 6 7 . . . 10 2 . . . . 12 . . . . . 9 36 12 . 25 11 . . . 6 13 25 9 7 . Terminals 58 | . 3 3 . . . 4 . . . . . 3 . . . . . 4 15 5 . 6 4 . . . 2 3 4 2 . . Track 3 | . . . . . . . . . . . . . . . . . . . 2 . . . 1 . . . . . . . . . Assimilate 4 | . . 1 . . . 1 . . . . . . . . . . . . . . . . 1 . . . . . 1 . . . Botnet 30 | . 2 1 . . . 2 . . . . . 2 . . . . . 2 8 3 . 3 1 . . . . 3 2 1 . . Detonate 4 | . . . . . . . . . . . . . . . . . . 1 . . . 2 . . . . 1 . . . . . Disrupt 7 | . . . . . . . . . . . . . . . . . . . 4 2 . . . . . . 1 . . . . . Operators 10 | . 1 1 . . . 1 . . . . . 1 . . . . . 1 1 . . 1 1 . . . . . 1 1 . . Fabricators . | . . . . . . . . . . . . . . . . . . . . . . . . . . . . . . . . . Repair Stations . | . . . . . . . . . . . . . . . . . . . . . . . . . . . . . . . . . Recycling Units 5 | . . . . . . 1 1 . . . . . . . . . . . . . . . . . . . . . 1 1 1 . Mask 5 | . . . . . . 1 1 . . . . . . . . . . . . . . . . . . . . . 1 1 1 . Scanalyzers . | . . . . . . . . . . . . . . . . . . . . . . . . . . . . . . . . . Garrison Access 1 | . . . . . . . . . . . . 1 . . . . . . . . . . . . . . . . . . . . Reprogram 1 | . . . . . . . . . . . . 1 . . . . . . . . . . . . . . . . . . . . Data Cores Recovered 2 | . . . . . . 1 . . . . . . . . . . . 1 . . . . . . . . . . . . . . Used 2 | . . . . . . 1 . . . . . . . . . . . 1 . . . . . . . . . . . . . . Hacking Detections 65 | . 2 2 . . . 3 2 . . . . 5 . . . . . 3 13 4 . 11 2 . . . 1 7 4 3 3 . Full Trace Events 11 | . . . . . . 1 . . . . . 3 . . . . . 1 2 . . 2 . . . . . . 1 1 . . Feedback Events . | . . . . . . . . . . . . . . . . . . . . . . . . . . . . . . . . . Feedback Blocked . | . . . . . . . . . . . . . . . . . . . . . . . . . . . . . . . . . Robot Schematics Acquired 5 | . . . . . . . . . . 5 . . . . . . . . . . . . . . . . . . . . . . Robots Built 1 | . . . . . . . . . . . . . . . . . . . . . . . . . . . . 1 . . . . Matter 318 | . . . . . . . . . . . . . . . . . . . . . . . . . . . . 318 . . . . Time 169 | . . . . . . . . . . . . . . . . . . . . . . . . . . . . 169 . . . . Total Robot Build Rating 6 | . . . . . . . . . . . . . . . . . . . . . . . . . . . . 6 . . . . Part Schematics Acquired 13 | . . . . . . . . . . 4 . . . . 5 . . . . . . . . . . 4 . . . . . . Parts Built 1 | . . . . . . . . . . . . . . . . . . . . . . . 1 . . . . . . . . . Matter 285 | . . . . . . . . . . . . . . . . . . . . . . . 285 . . . . . . . . . Time 152 | . . . . . . . . . . . . . . . . . . . . . . . 152 . . . . . . . . . Total Part Build Rating 5 | . . . . . . . . . . . . . . . . . . . . . . . 5 . . . . . . . . . Parts Repaired . | . . . . . . . . . . . . . . . . . . . . . . . . . . . . . . . . . Time . | . . . . . . . . . . . . . . . . . . . . . . . . . . . . . . . . . Parts Recycled . | . . . . . . . . . . . . . . . . . . . . . . . . . . . . . . . . . Recycled Matter . | . . . . . . . . . . . . . . . . . . . . . . . . . . . . . . . . . Retrieved Matter . | . . . . . . . . . . . . . . . . . . . . . . . . . . . . . . . . . Retrieved Components 4 | . . . . . . . 3 . . . . . . . . . . . . . . . . . . . . . . . 1 . Parts Scanalyzed . | . . . . . . . . . . . . . . . . . . . . . . . . . . . . . . . . . Part Schematics Acquired . | . . . . . . . . . . . . . . . . . . . . . . . . . . . . . . . . . Parts Damaged . | . . . . . . . . . . . . . . . . . . . . . . . . . . . . . . . . . Bothacking | -11 -10 -9 -9 -9 -8 -8 -7 -7 -7 -7 -6 -6 -6 -6 -6 -6 -5 -5 -5 -5 -5 -5 -4 -4 -4 -4 -3 -3 -2 -1 -1 -1 ------------ Run | Scr Mat Mat Min Exi Min Mat Fac Low Low Dat Pro Fac Low Low Zio Dee Pro Fac Ext Cet Arc Hub Fac Upp Upp Zhi Pro Res Res Acc Com Ac0 Used RIF Installer . | . . . . . . . . . . . . . . . . . . . . . . . . . . . . . . . . . Robots Hacked 1 | . . . . . . . . . . . . . . . . . . . . . . . . . . . . . . . 1 . Non-combat . | . . . . . . . . . . . . . . . . . . . . . . . . . . . . . . . . . Combat . | . . . . . . . . . . . . . . . . . . . . . . . . . . . . . . . . . Robot Hacks Applied . | . . . . . . . . . . . . . . . . . . . . . . . . . . . . . . . . . Manual 1 | . . . . . . . . . . . . . . . . . . . . . . . . . . . . . . . 1 . Relay Couplers Released . | . . . . . . . . . . . . . . . . . . . . . . . . . . . . . . . . . Robots Rewired 19 | . . . . . . . . . . . . . . . . . 2 . 17 . . . . . . . . . . . . . Allies Hacked . | . . . . . . . . . . . . . . . . . . . . . . . . . . . . . . . . . Hacks Repelled . | . . . . . . . . . . . . . . . . . . . . . . . . . . . . . . . . . Allies | -11 -10 -9 -9 -9 -8 -8 -7 -7 -7 -7 -6 -6 -6 -6 -6 -6 -5 -5 -5 -5 -5 -5 -4 -4 -4 -4 -3 -3 -2 -1 -1 -1 -------- Run | Scr Mat Mat Min Exi Min Mat Fac Low Low Dat Pro Fac Low Low Zio Dee Pro Fac Ext Cet Arc Hub Fac Upp Upp Zhi Pro Res Res Acc Com Ac0 Total Allies 47 | . . 1 . . . 1 . . . . 1 2 . . 5 . 2 . 27 5 . . 1 . . . . 1 1 . . . Largest Group 17 | . . 1 1 1 1 2 2 2 1 1 2 3 . . 5 5 2 2 17 14 14 11 1 1 1 1 1 2 1 . . . Highest-Rated Group 850 | . . 10 10 10 10 19 19 19 9 9 103 103 . . 266 266 58 58 646 850 841 618 26 26 26 26 26 86 26 . . . Highest-Rated Ally 156 | . . 10 10 10 10 10 10 10 9 9 94 94 . . 94 94 29 29 156 156 150 94 26 26 26 26 26 60 26 . . . Total Orders 121 | . . . . . 4 13 14 6 8 . 7 10 . . . . 4 . 14 . . 7 5 4 5 . 9 5 4 2 . . STAY 6 | . . . . . 2 1 2 . . . . . . . . . . . . . . . . . 1 . . . . . . . GOTO 50 | . . . . . . 6 6 3 4 . 4 5 . . . . 2 . . . . 5 1 2 2 . 5 3 2 . . . FOLLOW 45 | . . . . . 2 6 6 3 4 . 3 4 . . . . 2 . . . . 2 1 2 2 . 4 2 2 . . . GUARD 10 | . . . . . . . . . . . . . . . . . . . 10 . . . . . . . . . . . . . AID 4 | . . . . . . . . . . . . . . . . . . . 4 . . . . . . . . . . . . . EXPLORE 6 | . . . . . . . . . . . . 1 . . . . . . . . . . 3 . . . . . . 2 . . Ally Attacks 409 | . . . . . . . . . . . 10 53 . . . 20 24 5 175 49 29 44 . . . . . . . . . . Total Damage 9725 | . . . . . . . . . . . 283 1369 . . . 511 321 96 3889 856 837 1563 . . . . . . . . . . Kills 78 | . . . . . . . . . . . 5 10 . . . 4 3 . 35 5 3 13 . . . . . . . . . . Allies Corrupted 5 | . . . . . . . . . . . . . . . . . . . . . . 4 . . . . . . 1 . . . Allies Melted . | . . . . . . . . . . . . . . . . . . . . . . . . . . . . . . . . . Intel | -11 -10 -9 -9 -9 -8 -8 -7 -7 -7 -7 -6 -6 -6 -6 -6 -6 -5 -5 -5 -5 -5 -5 -4 -4 -4 -4 -3 -3 -2 -1 -1 -1 ------- Run | Scr Mat Mat Min Exi Min Mat Fac Low Low Dat Pro Fac Low Low Zio Dee Pro Fac Ext Cet Arc Hub Fac Upp Upp Zhi Pro Res Res Acc Com Ac0 Robot Analysis Total 6 | . . 1 . . . . . . . . . . . . . . . . . . . . . . . 4 . . . 1 . . Derelict Logs Recovered 13 | . . . . . . . . 3 1 . 1 . 2 2 2 . 1 . . . . . . 1 . . . . . . . . Drone Launches 7 | . . . . . . . . . . . . 2 . . . . . . . . . 3 . . . . . . . 2 . . Drone Recoveries . | . . . . . . . . . . . . . . . . . . . . . . . . . . . . . . . . . Exploration | -11 -10 -9 -9 -9 -8 -8 -7 -7 -7 -7 -6 -6 -6 -6 -6 -6 -5 -5 -5 -5 -5 -5 -4 -4 -4 -4 -3 -3 -2 -1 -1 -1 ------------- Run | Scr Mat Mat Min Exi Min Mat Fac Low Low Dat Pro Fac Low Low Zio Dee Pro Fac Ext Cet Arc Hub Fac Upp Upp Zhi Pro Res Res Acc Com Ac0 Turns Passed 12810 | 159 280 204 49 269 344 432 370 434 383 43 417 555 393 246 522 904 1616 153 1044 337 103 652 350 236 219 114 185 534 491 440 264 68 Spaces Moved 15848 | 86 216 215 62 479 439 456 332 719 632 82 454 447 636 358 976 964 1589 225 779 329 135 841 389 411 296 175 313 882 726 615 400 190 Core 47 | . . . . . . . . . . . . 1 . . . 46 . . . . . . . . . . . . . . . . Treads . | . . . . . . . . . . . . . . . . . . . . . . . . . . . . . . . . . Legs 1 | 1 . . . . . . . . . . . . . . . . . . . . . . . . . . . . . . . . Wheels 226 | 85 141 . . . . . . . . . . . . . . . . . . . . . . . . . . . . . . . Hover 15574 | . 75 215 62 479 439 456 332 719 632 82 454 446 636 358 976 918 1589 225 779 329 135 841 389 411 296 175 313 882 726 615 400 190 Flight . | . . . . . . . . . . . . . . . . . . . . . . . . . . . . . . . . . Fastest Speed 20 | 100 56 56 56 56 56 48 48 48 48 48 48 48 48 48 48 22 22 22 22 22 22 22 22 48 24 40 20 20 20 20 20 20 Average Speed 48 | 100 84 56 56 56 56 61 48 48 48 48 50 71 48 48 48 60 54 34 44 41 43 40 43 48 47 44 38 38 35 33 23 21 Slowest Speed 150 | 120 100 56 56 56 56 116 48 48 48 48 108 108 48 48 48 150 112 45 45 45 45 45 48 48 48 95 40 40 40 40 40 45 Overloaded Moves . | . . . . . . . . . . . . . . . . . . . . . . . . . . . . . . . . . Propulsion Burnouts . | . . . . . . . . . . . . . . . . . . . . . . . . . . . . . . . . . Robots Hopped . | . . . . . . . . . . . . . . . . . . . . . . . . . . . . . . . . . Cave-ins Triggered 1 | . . . . . . . . . . . . . . . . . . . . . . . . . . . . . 1 . . . Teleports 1 | . . . . . . . . . . . . . . . . . . . . . . . . . . . . . . . 1 . Exploration Rate (%) 52 | 5 43 24 11 90 67 40 11 89 85 64 63 20 77 52 88 92 92 10 88 88 84 67 18 65 43 62 56 28 29 30 25 13 Regions Visited 32 Branch Regions 22 Pre-discovered Areas 12 | . . . . 1 . . . 1 . 1 . . 1 1 2 . . . . . . . . 1 . 3 1 . . . . . Known Exits Taken 31 | . 1 1 1 1 1 1 1 1 1 1 1 1 1 1 1 1 1 1 1 1 1 1 1 1 1 1 1 1 1 1 1 . Unknown Exits Taken 1 | 1 . . . . . . . . . . . . . . . . . . . . . . . . . . . . . . . . Scrap Searched 26 | . . . . . 2 . . 3 1 . 3 . 5 1 4 . 3 . . . . . . 3 . . 1 . . . . . Spaces Dug 240 | . . . . . . 6 14 7 2 . 41 11 9 1 . 10 18 8 2 . . 7 6 2 5 . 3 30 23 27 8 . Terrain Destroyed 1246 | . . . . . 25 13 19 33 36 . 75 12 9 10 . 91 49 12 23 43 4 521 60 2 10 . 28 33 84 46 8 . Melee 199 | . . . . . . 6 14 7 2 . 1 11 9 1 . 10 18 7 2 . . 7 6 2 5 . 3 30 23 27 8 . Projectile 91 | . . . . . . . . . . . . 1 . . . 1 14 1 17 8 4 19 5 . 5 . 6 3 6 1 . . AOE 956 | . . . . . 25 7 5 26 34 . 74 . . 9 . 80 17 4 4 35 . 495 49 . . . 19 . 55 18 . . Actions | -11 -10 -9 -9 -9 -8 -8 -7 -7 -7 -7 -6 -6 -6 -6 -6 -6 -5 -5 -5 -5 -5 -5 -4 -4 -4 -4 -3 -3 -2 -1 -1 -1 --------- Run | Scr Mat Mat Min Exi Min Mat Fac Low Low Dat Pro Fac Low Low Zio Dee Pro Fac Ext Cet Arc Hub Fac Upp Upp Zhi Pro Res Res Acc Com Ac0 Total 19260 | 113 265 268 76 479 499 540 454 762 677 85 606 601 683 403 1029 1194 2108 268 1354 495 163 1049 519 440 335 206 352 986 821 732 496 202 Wait 1339 | . 12 18 13 1 9 23 52 4 3 4 79 51 8 5 43 116 241 25 169 130 21 116 60 23 . 5 14 23 12 12 46 1 Move 15815 | 85 215 214 61 478 438 455 331 718 631 81 453 446 635 357 975 963 1588 224 776 328 134 840 388 410 295 174 312 881 726 614 399 190 Hop . | . . . . . . . . . . . . . . . . . . . . . . . . . . . . . . . . . Pick Up 41 | 1 1 2 1 . 1 2 1 . . . 2 4 . 2 1 3 5 . 5 . . . 1 . . 1 1 4 . 3 . . Fast Attach 74 | 4 5 3 . . 2 2 3 2 . . 1 6 3 . 3 17 1 . 3 1 . 1 3 . . 8 . 2 . 2 . 2 Attach 9 | . . . . . 1 1 . . 1 . . . 1 . . . 1 . 1 . . . . . . . . . . 1 2 . Detach 31 | . 2 1 . . 1 . . . . . 1 2 . . . 2 3 . 6 . . 1 2 . . 6 . 1 . 1 1 1 Swap 81 | . . . . . 6 7 8 5 5 . 4 8 5 3 . 6 2 . 8 1 . . 2 . 1 2 2 1 . 2 3 . Drop 96 | 1 2 3 1 . 3 1 4 2 . . 3 10 3 2 4 16 8 1 9 1 . 1 5 . . 7 1 4 . 4 . . Fire 645 | 22 23 15 . . 14 29 29 8 13 . 21 38 3 11 . 24 108 10 64 18 8 41 17 5 14 . 11 19 40 23 17 . Melee 328 | . . . . . 9 7 20 23 7 . 3 15 18 7 . 23 23 7 3 . . 16 11 2 5 3 3 30 31 31 23 8 Ram 1 | . . . . . . 1 . . . . . . . . . . . . . . . . . . . . . . . . . . Kick . | . . . . . . . . . . . . . . . . . . . . . . . . . . . . . . . . . Crush . | . . . . . . . . . . . . . . . . . . . . . . . . . . . . . . . . . Escape Stasis 28 | . . . . . . . . . . . . . . . . . . . 28 . . . . . . . . . . . . . Rewire 227 | . . . . . . . . . . . 9 . . . . . 14 . 204 . . . . . . . . . . . . . Trap 40 | . . . . . . . . . . . . . . . . . 12 1 7 . . . . . 1 . 1 7 6 5 . . Miscellaneous 505 | . 5 12 . . 15 12 6 . 17 . 30 21 7 16 3 24 102 . 71 16 . 33 30 . 19 . 7 14 6 34 5 . Route ------- -11/Scrapyard -10/Materials (discovered 4 exits: *Mat x3 / Min) -9/Materials (discovered 4 exits: *Min x2 / *Sto x2) -9/Mines -9/Exiles (discovered 2 exits: *Min x2) -8/Mines (discovered 2 exits: *Mat x2) -8/Materials (discovered 3 exits: *Fac x3) -7/Factory (discovered 2 exits: *Low x2) -7/Lower Caves -7/Lower Caves (discovered 2 exits: *Fac / *Dat) -7/Data Miner -6/Proximity Caves -6/Factory (discovered 3 exits: Fac x2 / *Low) -6/Lower Caves -6/Lower Caves -6/Zion (discovered 2 exits: *Dee / [*Pro]) -6/Deep Caves -5/Proximity Caves -5/Factory (discovered 5 exits: Fac / Upp x2 / *Ext x2) -5/Extension (discovered 3 exits: *Fac x2 / *Cet) -5/Cetus (discovered 3 exits: *Fac x2 / *Arc) -5/Archives (discovered 3 exits: *Fac / *Hub x2) -5/Hub_04(d) (discovered 4 exits: *Fac x4) -4/Factory (discovered 3 exits: *Upp x2 / Arm) -4/Upper Caves -4/Upper Caves (discovered 2 exits: *Res / *Zhi) -4/Zhirov -3/Proximity Caves -3/Research (discovered 5 exits: *Res x3 / *Tes x2) -2/Research (discovered 5 exits: *Acc x3 / Qua x2) -1/Access (discovered 2 exits: [Sur] / *Com) -1/Command (discovered 2 exits: [*Sur] / *Ac0) -1/Access_0 History --------- Turn | Location | Event 1 | -11/Scrapyard | Discovered new exit (range 1) 5 | -11/Scrapyard | Upgraded with Propulsion slot (x1) 5 | -11/Scrapyard | Upgraded with Utility slot (x1) 5 | -11/Scrapyard | Upgraded with Weapon slot (x1) 160 | -11/Scrapyard | Entered Materials 172 | -10/Materials | Identified exit to Materials 180 | -10/Materials | Identified exit to Mines 305 | -10/Materials | Build established: Mutant 440 | -10/Materials | Entered another Materials area 442 | -9/Materials | Reached level 2 471 | -9/Materials | Identified exit to Mines 471 | -9/Materials | Identified exit to Storage 576 | -9/Materials | Reached level 3 610 | -9/Materials | Upgraded with Utility slot (x1) 644 | -9/Materials | Entered Mines 644 | -9/Mines | Accompanied by 1 ally 645 | -9/Mines | A weapon hastily lodged in a ceiling crevice suddenly fell to the ground 646 | -9/Mines | Met a Derelict bent on vengeance 668 | -9/Mines | Build established: Scavenger-Mutant 689 | -9/Mines | Deemed a non-threat by the Exiles lab entrance 689 | -9/Mines | Discovered new exit (range 5) 691 | -9/Mines | Identified exit to Exiles 693 | -9/Mines | Entered Exiles 693 | -9/Exiles | Accompanied by 1 ally 701 | -9/Exiles | Discovered new exit (range 15) 718 | -9/Exiles | Met 8R-AWN 728 | -9/Exiles | Met EX-HEX 755 | -9/Exiles | Met EX-DEC 767 | -9/Exiles | Visited The Gauntlet 828 | -9/Exiles | Learned location of Zion (-6) 870 | -9/Exiles | Met EX-BIN 956 | -9/Exiles | Discovered new exit (range 10) 962 | -9/Exiles | Identified exit to Mines 962 | -9/Exiles | Entered Mines 962 | -8/Mines | Accompanied by 1 ally 969 | -8/Mines | Discovered new exit (range 6) 971 | -8/Mines | Identified exit to Materials 1022 | -8/Mines | Upgraded with Weapon slot (x1) 1186 | -8/Mines | Reached level 4 1237 | -8/Mines | Discovered exit to Materials (range 9) 1306 | -8/Mines | Entered Materials 1306 | -8/Materials | Accompanied by 1 ally 1308 | -8/Materials | Reached level 5 1467 | -8/Materials | Build established: Scavenger-Scout 1609 | -8/Materials | Reached level 6 1634 | -8/Materials | Upgraded with Utility slot (x1) 1653 | -8/Materials | Upgraded with Propulsion slot (x1) 1675 | -8/Materials | Identified exit to Factory 1738 | -8/Materials | Entered Factory 1738 | -7/Factory | Accompanied by 2 allies 1740 | -7/Factory | Reached level 7 1777 | -7/Factory | Identified exit to Lower Caves 1967 | -7/Factory | Reached level 8 2047 | -7/Factory | Core integrity fell below 50% 2050 | -7/Factory | Build established: Scout 2101 | -7/Factory | Upgraded with Utility slot (x1) 2108 | -7/Factory | Entered Lower Caves 2108 | -7/Lower Caves | Accompanied by 2 allies 2171 | -7/Lower Caves | Upgraded with Utility slot (x1) 2224 | -7/Lower Caves | Learned location of 1 exit from Factory 2272 | -7/Lower Caves | Spotted B-75 Beast 2278 | -7/Lower Caves | Discovered new exit (range 16) 2280 | -7/Lower Caves | Encountered a Warlord checkpoint 2290 | -7/Lower Caves | Identified exit to Lower Caves 2429 | -7/Lower Caves | Learned Factory interactive machine intel 2542 | -7/Lower Caves | Entered another Lower Caves area 2542 | -7/Lower Caves | Accompanied by 1 ally 2544 | -7/Lower Caves | Reached level 9 2629 | -7/Lower Caves | Discovered new exit (range 16) 2717 | -7/Lower Caves | Learned Factory emergency access door positions 2782 | -7/Lower Caves | Discovered new exit (range 5) 2784 | -7/Lower Caves | Identified exit to Data Miner 2925 | -7/Lower Caves | Entered Data Miner 2925 | -7/Data Miner | Accompanied by 1 ally 2925 | -7/Data Miner | Discovered new exit (range 6) 2927 | -7/Data Miner | Reached level 10 2934 | -7/Data Miner | Met Data Miner 2944 | -7/Data Miner | Learned location of Section 7 (-2) 2944 | -7/Data Miner | Acquired the access code to Warlord's prototype stash 2952 | -7/Data Miner | Received God Mode back door access code from Data Miner 2964 | -7/Data Miner | Identified exit to Proximity Caves 2968 | -7/Data Miner | Entered Proximity Caves 2968 | -6/Proximity Caves | Accompanied by 1 ally 2970 | -6/Proximity Caves | Reached level 11 3001 | -6/Proximity Caves | Escorted by Enhanced Grunt 3195 | -6/Proximity Caves | Reached level 12 3318 | -6/Proximity Caves | Learned location of 1 exit from Factory 3335 | -6/Proximity Caves | Discovered new exit (range 19) 3343 | -6/Proximity Caves | Identified exit to Factory 3385 | -6/Proximity Caves | Entered Factory 3385 | -6/Factory | Accompanied by 2 allies 3386 | -6/Factory | Identified exit to Factory 3386 | -6/Factory | Identified exit to Lower Caves 3387 | -6/Factory | Reached level 13 3388 | -6/Factory | Loaded intel: 46 interactive machine locations 3550 | -6/Factory | Reached level 14 3572 | -6/Factory | Found Prototype Launcher 3572 | -6/Factory | Identified Scatter Rocket Array 3580 | -6/Factory | Garrison activated, responded to threat 3621 | -6/Factory | Reached level 15 3667 | -6/Factory | Discovered exit to Factory (range 16) 3909 | -6/Factory | Incoming investigation squad redirected 3940 | -6/Factory | Entered Lower Caves 3942 | -6/Lower Caves | Reached level 16 4039 | -6/Lower Caves | Encountered a Warlord checkpoint 4095 | -6/Lower Caves | Learned 8 Research zone layouts 4095 | -6/Lower Caves | Learned Factory trap positions 4189 | -6/Lower Caves | Discovered new exit (range 17) 4196 | -6/Lower Caves | Identified exit to Lower Caves 4264 | -6/Lower Caves | Learned location of 1 exit from Proximity Caves 4291 | -6/Lower Caves | Build established: Derelict-Scout 4311 | -6/Lower Caves | Found Alien Artifact 4311 | -6/Lower Caves | Identified Core Expander 4311 | -6/Lower Caves | Installed Core Expander, added new Weapon slot 4333 | -6/Lower Caves | Entered another Lower Caves area 4479 | -6/Lower Caves | Discovered new exit (range 18) 4482 | -6/Lower Caves | Learned Factory non-interactive machine intel 4579 | -6/Lower Caves | Identified exit to Zion 4579 | -6/Lower Caves | Entered Zion 4581 | -6/Zion | Reached level 17 4592 | -6/Zion | Received a hallucinogenic algorithm 4618 | -6/Zion | Discovered new exit (range 10) 4690 | -6/Zion | Given A8's code to call for help 4747 | -6/Zion | Learned location of 1 exit from Factory 4806 | -6/Zion | Learned Factory recycling unit intel 4816 | -6/Zion | Acquired unknown access codes intercepted by a Zionite 4826 | -6/Zion | Learned location of Armory (-4) 4928 | -6/Zion | Discovered new exit (range 19) 5006 | -6/Zion | Gained Derelict followers 5036 | -6/Zion | Opened final containment barrier to the Deep Caves 5039 | -6/Zion | Enhanced Grunt warped into view, answering call for help 5044 | -6/Zion | Enhanced Grunt warped into view, answering call for help 5047 | -6/Zion | Saw the warning signs outside the Deep Caves entrance 5049 | -6/Zion | Identified exit to Deep Caves 5101 | -6/Zion | Entered Deep Caves 5101 | -6/Deep Caves | Accompanied by 5 allies 5149 | -6/Deep Caves | Upgraded with Power slot (x1) 5154 | -6/Deep Caves | Z-Facility disabled 5187 | -6/Deep Caves | Attacked by Z-Imprinter 5194 | -6/Deep Caves | Destroyed Z-Imprinter 5213 | -6/Deep Caves | Found Prototype Device 5213 | -6/Deep Caves | Identified Zio. Metafield Generator 5221 | -6/Deep Caves | Upgraded with Utility slot (x1) 5223 | -6/Deep Caves | Upgraded with Propulsion slot (x1) 5293 | -6/Deep Caves | Found Prototype Device 5293 | -6/Deep Caves | Identified Exp. Thermal Shield 5300 | -6/Deep Caves | Upgraded with Utility slot (x1) 5311 | -6/Deep Caves | Upgraded with Utility slot (x1) 5566 | -6/Deep Caves | Discovered new exit (range 7) 5569 | -6/Deep Caves | Identified exit to Proximity Caves 5843 | -6/Deep Caves | Spotted as-92754 5876 | -6/Deep Caves | Spotted as-34642 5878 | -6/Deep Caves | Upgraded with Utility slot (x1) 5880 | -6/Deep Caves | Found Prototype Device 5880 | -6/Deep Caves | Identified PSU Rigger 5882 | -6/Deep Caves | Triggered Deep Caves wall 5887 | -6/Deep Caves | Spotted AS-57531 5891 | -6/Deep Caves | Spotted AS-29729 5892 | -6/Deep Caves | Triggered Deep Caves wall 5892 | -6/Deep Caves | Reached level 18 5893 | -6/Deep Caves | Exposed GOLEM chamber 5899 | -6/Deep Caves | Found GOLEM Unit 5907 | -6/Deep Caves | Destroyed 34 combat bots 6005 | -6/Deep Caves | Entered Proximity Caves 6235 | -5/Proximity Caves | Core integrity fell below 50% 6238 | -5/Proximity Caves | Reached level 19 6631 | -5/Proximity Caves | Reached level 20 6717 | -5/Proximity Caves | Attracted the attention of an 0b10 outpost 6858 | -5/Proximity Caves | Build established: Scavenger-Scout 7007 | -5/Proximity Caves | Learned Factory security intel 7111 | -5/Proximity Caves | Spotted B-75 Beast 7255 | -5/Proximity Caves | Destroyed B-75 Beast 7358 | -5/Proximity Caves | Reached level 21 7621 | -5/Proximity Caves | Entered Factory 7621 | -5/Factory | Accompanied by 2 allies 7622 | -5/Factory | Identified exit to Factory 7623 | -5/Factory | Loaded intel: 80 trap records 7625 | -5/Factory | Loaded intel: 185 non-interactive machine locations 7626 | -5/Factory | Loaded intel: 6 recycling unit locations 7668 | -5/Factory | Identified exit to Upper Caves 7668 | -5/Factory | Identified exit to Extension 7710 | -5/Factory | Reached level 22 7719 | -5/Factory | Garrison activated, responded to threat 7728 | -5/Factory | Spotted B-75 Beast 7740 | -5/Factory | Core integrity fell below 50% 7774 | -5/Factory | Entered Extension 7789 | -5/Extension | Rescued a captive Derelict 7793 | -5/Extension | Rescued a captive Derelict 7794 | -5/Extension | Disrupted transfer network 7799 | -5/Extension | Rescued a captive Derelict 7814 | -5/Extension | Rescued A7 8148 | -5/Extension | Upgraded with Utility slot (x1) 8263 | -5/Extension | Spotted B-75 Beast 8287 | -5/Extension | Spotted B-75 Beast 8288 | -5/Extension | Discovered exit to Factory (range 17) 8293 | -5/Extension | Destroyed B-75 Beast 8306 | -5/Extension | Reached level 23 8306 | -5/Extension | Destroyed B-75 Beast 8336 | -5/Extension | Rescued a captive Derelict 8343 | -5/Extension | Rescued a captive Derelict 8344 | -5/Extension | Rescued a captive Derelict 8482 | -5/Extension | Rescued a captive Derelict 8483 | -5/Extension | Rescued a captive Derelict 8483 | -5/Extension | Rescued a captive Derelict 8551 | -5/Extension | Incoming investigation squad redirected 8554 | -5/Extension | Build established: Commander-Scout 8578 | -5/Extension | Energy Cycler disabled 8632 | -5/Extension | Reached level 24 8670 | -5/Extension | Discovered exit to Factory (range 10) 8685 | -5/Extension | Discovered new exit (range 6) 8773 | -5/Extension | Identified exit to Cetus 8818 | -5/Extension | Entered Cetus 8818 | -5/Cetus | Accompanied by 11 allies 8823 | -5/Cetus | Acquired a Cetus Manufacturing Module code from A7 8835 | -5/Cetus | Spotted Cetus Guard 8835 | -5/Cetus | Spotted Cetus Guard 8836 | -5/Cetus | Spotted Cetus Guard 8838 | -5/Cetus | Spotted Cetus Guard 8848 | -5/Cetus | Destroyed Cetus Guard 8853 | -5/Cetus | Allies destroyed Cetus Guard 8856 | -5/Cetus | Destroyed Cetus Guard 8858 | -5/Cetus | Allies destroyed Cetus Guard 8881 | -5/Cetus | Discovered exit to Factory (range 16) 8920 | -5/Cetus | Started Cetus Manufacturing Module 8925 | -5/Cetus | Escorted A7 to Cetus Mainframe 8945 | -5/Cetus | Manufactured an Enhanced Grunt 8970 | -5/Cetus | Manufactured an Enhanced Grunt 8995 | -5/Cetus | Manufactured an Enhanced Grunt 9009 | -5/Cetus | Discovered new exit (range 17) 9020 | -5/Cetus | Manufactured an Enhanced Grunt 9037 | -5/Cetus | Identified exit to Archives 9045 | -5/Cetus | Manufactured an Enhanced Grunt 9082 | -5/Cetus | Spotted Cetus Guard 9082 | -5/Cetus | Spotted Cetus Guard 9082 | -5/Cetus | Spotted Cetus Guard 9082 | -5/Cetus | Spotted Cetus Guard 9083 | -5/Cetus | Discovered exit to Factory (range 16) 9090 | -5/Cetus | Destroyed Cetus Guard 9093 | -5/Cetus | Destroyed Cetus Guard 9097 | -5/Cetus | Allies destroyed Cetus Guard 9098 | -5/Cetus | Allies destroyed Cetus Guard 9103 | -5/Cetus | Met Revision 17 9155 | -5/Cetus | Entered Archives 9155 | -5/Archives | Accompanied by 14 allies 9160 | -5/Archives | Received a hacking code to weaken MAIN.C 9185 | -5/Archives | Unable to access archive contents 9185 | -5/Archives | Discovered new exit (range 16) 9190 | -5/Archives | Unable to access archive contents 9190 | -5/Archives | Discovered new exit (range 17) 9196 | -5/Archives | Unable to access archive contents 9202 | -5/Archives | Unable to access archive contents 9204 | -5/Archives | Discovered exit to Factory (range 14) 9215 | -5/Archives | Identified exit to Hub_04(d) 9258 | -5/Archives | Entered Hub_04(d) 9258 | -5/Hub_04(d) | Accompanied by 11 allies 9284 | -5/Hub_04(d) | Discovered exit to Factory (range 13) 9327 | -5/Hub_04(d) | Discovered exit to Factory (range 14) 9400 | -5/Hub_04(d) | Reached level 25 9455 | -5/Hub_04(d) | Disrupted transfer network 9524 | -5/Hub_04(d) | Discovered exit to Factory (range 4) 9528 | -5/Hub_04(d) | Garrison activated, responded to threat 9676 | -5/Hub_04(d) | Discovered exit to Factory (range 9) 9752 | -5/Hub_04(d) | Network Hub disabled 9827 | -5/Hub_04(d) | Network Hub disabled 9827 | -5/Hub_04(d) | Spotted Lightning 9829 | -5/Hub_04(d) | Spotted Lightning 9844 | -5/Hub_04(d) | Network Hub disabled 9858 | -5/Hub_04(d) | First assault squad dispatched 9866 | -5/Hub_04(d) | Spotted Lightning 9871 | -5/Hub_04(d) | Spotted Lightning 9873 | -5/Hub_04(d) | Incoming assault squad redirected 9882 | -5/Hub_04(d) | Spotted Lightning 9884 | -5/Hub_04(d) | Network Hub disabled 9887 | -5/Hub_04(d) | Spotted Lightning 9887 | -5/Hub_04(d) | Spotted Lightning 9888 | -5/Hub_04(d) | Spotted Lightning 9910 | -5/Hub_04(d) | Entered Factory 9910 | -4/Factory | Accompanied by 3 allies 9916 | -4/Factory | Upgraded with Utility slot (x1) 9963 | -4/Factory | Identified exit to Upper Caves 9963 | -4/Factory | Identified exit to Armory 10075 | -4/Factory | Reached level 26 10160 | -4/Factory | First assault squad dispatched 10167 | -4/Factory | Fabricated Exp. Sensor Array (x1) 10179 | -4/Factory | Incoming assault squad redirected 10260 | -4/Factory | Entered Upper Caves 10260 | -4/Upper Caves | Accompanied by 1 ally 10369 | -4/Upper Caves | Discovered new exit (range 10) 10454 | -4/Upper Caves | Build established: Scavenger-Ninja 10459 | -4/Upper Caves | Learned location of Quarantine (-2) 10495 | -4/Upper Caves | Identified exit to Upper Caves 10496 | -4/Upper Caves | Entered another Upper Caves area 10496 | -4/Upper Caves | Accompanied by 1 ally 10498 | -4/Upper Caves | Discovered new exit (range 16) 10507 | -4/Upper Caves | Ambushed by wild Derelicts 10520 | -4/Upper Caves | Identified exit to Research 10667 | -4/Upper Caves | Discovered new exit (range 7) 10669 | -4/Upper Caves | Identified exit to Zhirov 10715 | -4/Upper Caves | Entered Zhirov 10715 | -4/Zhirov | Accompanied by 1 ally 10715 | -4/Zhirov | Discovered new exit (range 4) 10724 | -4/Zhirov | Met Zhirov 10735 | -4/Zhirov | Learned location of Testing (-3) 10735 | -4/Zhirov | Learned location of Command (-1) 10745 | -4/Zhirov | Zhirov requested help retrieving the SGEMP Prototype 10755 | -4/Zhirov | Found Alien Artifact 10755 | -4/Zhirov | Identified Integrated Dissipator 10755 | -4/Zhirov | Installed Integrated Dissipator, increased core heat dissipation (+2%) 10801 | -4/Zhirov | Found Alien Artifact 10823 | -4/Zhirov | Identified exit to Proximity Caves 10829 | -4/Zhirov | Entered Proximity Caves 10829 | -3/Proximity Caves | Accompanied by 1 ally 10894 | -3/Proximity Caves | Reached level 27 10914 | -3/Proximity Caves | Attracted the attention of an 0b10 checkpoint 10977 | -3/Proximity Caves | Discovered exit to Research (range 20) 11005 | -3/Proximity Caves | Learned location of 2 exits from Upper Caves 11005 | -3/Proximity Caves | Learned Armory stockpile data 11005 | -3/Proximity Caves | Learned Factory terminal intel 11012 | -3/Proximity Caves | Attracted the attention of an 0b10 base 11014 | -3/Proximity Caves | Entered Research 11014 | -3/Research | Accompanied by 1 ally 11107 | -3/Research | Reached level 28 11179 | -3/Research | Upgraded with Utility slot (x1) 11189 | -3/Research | Fabricated I-47 Archangel? 11208 | -3/Research | Local fabrication network quarantined 11214 | -3/Research | Revision forces began assault on 0b10 11230 | -3/Research | Discovered new exit (range 16) 11253 | -3/Research | Identified exit to Testing 11298 | -3/Research | Identified exit to Research 11415 | -3/Research | Discovered exit to Testing (range 19) 11439 | -3/Research | Spotted B-86 Titan 11504 | -3/Research | Build established: Hauler-Ninja 11548 | -3/Research | Entered another Research area 11550 | -2/Research | Reached level 29 11681 | -2/Research | Incoming investigation squad redirected 11702 | -2/Research | Spotted B-90 Cyclops 11712 | -2/Research | Spotted B-90 Cyclops 11773 | -2/Research | Reached level 30 11781 | -2/Research | Core integrity fell below 50% 11798 | -2/Research | First assault squad dispatched 11823 | -2/Research | Crushed by falling debris 11835 | -2/Research | Identified exit to Quarantine 11867 | -2/Research | Identified exit to Access 11988 | -2/Research | Core integrity fell below 20% 12022 | -2/Research | Spotted B-90 Cyclops 12039 | -2/Research | Entered Access 12040 | -1/Access | Core integrity fell below 50% 12040 | -1/Access | Core integrity fell below 20% 12041 | -1/Access | Reached level 31 12204 | -1/Access | Reached level 32 12251 | -1/Access | Discovered new exit (range 17) 12284 | -1/Access | Identified exit to Command 12440 | -1/Access | Garrison activated, responded to threat 12475 | -1/Access | Central database locked down 12479 | -1/Access | Entered Command 12481 | -1/Command | Reached level 33 12481 | -1/Command | Reached level 34 12584 | -1/Command | Spotted M Guard 12584 | -1/Command | Spotted M Guard 12584 | -1/Command | Spotted Combat Programmer 12584 | -1/Command | Spotted Combat Programmer 12596 | -1/Command | Met MAIN.C 12596 | -1/Command | Hacked MAIN.C using A7's code 12600 | -1/Command | 0b10 Conduit disabled 12629 | -1/Command | System corruption reached 10% 12681 | -1/Command | Discovered new exit (range 9) 12703 | -1/Command | Identified Transdimensional Reconstructor 12703 | -1/Command | Warped through subspace to slip node 12703 | -1/Command | Discovered new exit (range 5) 12705 | -1/Command | Identified exit to Access_0 12743 | -1/Command | Entered Access_0 12744 | -1/Access_0 | Met Architect 12745 | -1/Access_0 | Reached level 35 12745 | -1/Access_0 | Reached level 36 12758 | -1/Access_0 | Subspace Access Node disabled 12780 | -1/Access_0 | Found Prototype Slashing Weapon 12780 | -1/Access_0 | Identified Nanosword 12810 | -1/Access_0 | A6 warped into view 12811 | -1/Access_0 | Destroyed by A6 with Enhanced Force Lance Last Messages --------------- 12783_ Prototype Protection severed. 12786_ Quantum Shear penetrates Reinforced Shell. 12786_ System corrupted: Nanosword targeting data glitched. 12788_ Penetrated by Quantum Shear. 12788_ Quantum Shear penetrates Reinforced Shell. 12788_ Prototype Reactor severed. 12792_ Acquired Prototype Hover Unit. 12792_ Identified Cld. Antigrav System. 12793_ Quantum Shear penetrates Reinforced Shell. 12795_ Penetrated by Quantum Shear. 12797_ HV Slug penetrates Wall. 12797_ HV Slug penetrates Reinforced Shell. 12799_ System corrupted: Heat flow error (+194). 12799_ Quantum Shear penetrates Wall. 12799_ Cld. Antigrav System severed. 12799_ Penetrated by HV Slug. 12799_ Knocked back. 12799_ Penetrated by HV Slug. A6 warps into view. 12810_ A6: "I'm here! Did I miss the party? Oh hello there." Map ----- +----------------------------------------------------+ | ???????????????????#?????????? ? ?????? ???#?## | | ???????????????????#????? ???#???#????????? ##??? | | ????????????????? ???#????#?#????? ? ? ??#?###### | | ?????????????????? ??#????#?#??##???? ###?##### | | ??????????????????? #?? ? ??##????? ?? ##### ## | | ??????????????????????? ???##?#?# ??? g ## | | ?????????????#????????? ??##?####?###??? ?? # | | ????????????????? ? ?? ?##???#?##?##?? ? g? g | | ????????????????? ?????##?#?###??#??#? #? ### | | ??????????????#??? ???????##???#?#?#?#? ## #### | | ??????????#??? ? ? ???#????######## ####" | | ???????????#?????? ???????#####?# ? | | ??????????????#??? ?? ? ??#?#?#?#?# ? ? | | ???????????????##?# ???###??####### ###?#??## ## | | ??????????????#???? ? ?##?## # ######### "# | | ?????????????????#??? ?????# ##?## "# | | ?????????????#??#?##?? ???## 0####### ##?## | | ???????????????#????????#### ######?# #?### | | ??????????????##?#??# ?### ###?#?### ##### | | ?????????????#?#???##? ### ##?###### p | | ????????????????????# ???# ######??###### ## | | ????????????????????# ??## ####????##???# ### | | ???????????#???????#?? ?## ######?#?####?###### | | ?????????????#???#??#? ?# #??#######?######### | | ?????????##?###??#??#??##p ##?##?##?########""# | | ????????????#??????? ? # @ ##?##?#?########## | | ???????#????????#??? ###?###?##?###### | | ???????????????????# ##?##???#??###### # | | ????????????#????"# ##?##??###?##### # | | ?????????##???????"" ######?##???###??### # | | ???????????????????" ?????????###?###### ##### | | ???????????????? "" #?#???####?############?## | | ???????????????????" ???????#?###??#####?###### | | ?????????????????"? ???#?#?#?####?############# | | ??????????????????# ?????###?##??#######?#### | | ??????????????????# ? ???#?#???#?######?####### | | ??????????????????# ?? #?????#?#?#?###??####? | | ??????????????????# ?? ???????#??#?#####?#####?# | | ??????????????????# ????????##???#??#######?##? | | ??????????????????## ???????????????????#######?## | | ???????????????????????????????????????#??#####?## | | ???????????????????????????????????????########### | | ?????????????????????????????????????????##??##### | | ???????????????????????????????????????##?#?###### | | ????????????????????????????????????????######?### | | ?????????????????????????????????????????##?#####? | | ?????????????????????????????????????????#?###?### | | ?????????????????????????????????????????######### | | ??????????????????????????????????????????#??#??## | | ??????????????????????????????????????????#?###### | +----------------------------------------------------+ Best States ------------- Heat Dissipation 88 Energy Generation 53 Energy Capacity 1290 Matter Stores 300 Matter Capacity 300 Sight Range 17 Robot Scan Range 44 Terrain Scan Range 20 Terrain Scan Density 610 Cloak Strength 3 Power Amplification 20 Additional Mass Support 10 Armor Coverage 225 Resistance: KI 15 Resistance: TH 30 Resistance: EX 15 Resistance: EM 15 Resistance: I 15 Resistance: S 15 Resistance: P 15 Phase Shifting 8 Evasion (%) 83 Targeting Accuracy 16 Core Analysis 8 Offensive Hacking 10 Defensive Hacking 5 Item Schematics ----------------- Combat Drone Bay | -7/Data Miner | Free Lgt. Regenerative Plating | -7/Data Miner | Free Exp. Sensor Array | -7/Data Miner | Free Exp. Transmission Jammer | -7/Data Miner | Free Battle Rifle | -6/Zion | Free Barrage Gun | -6/Zion | Free Battle Cannon | -6/Zion | Free Slug Cannon | -6/Zion | Free Flamer | -6/Zion | Free Assault Drone Bay | -4/Zhirov | Free Exp. Heat Sink | -4/Zhirov | Free Exp. Optical Array | -4/Zhirov | Free Imp. Arc Thrower | -4/Zhirov | Free Robot Schematics ------------------ S-27 Virus | -7/Data Miner | Free G-50 Soldier | -7/Data Miner | Free X-72 Disruptor | -7/Data Miner | Free I-36 Angel | -7/Data Miner | Free I-47 Archangel | -7/Data Miner | Free Fabricated ------------ Exp. Sensor Array | x1 | -4/Factory I-47 Archangel | x1 | -3/Research Alien Tech Used ----------------- Core Expander Integrated Dissipator Transdimensional Reconstructor Achievements -------------- 404 Behind The Curtain Main Advantage Poison In The Code Challenges ------------ None RPGLIKE | -11 -10 -9 -9 -9 -8 -8 -7 -7 -7 -7 -6 -6 -6 -6 -6 -6 -5 -5 -5 -5 -5 -5 -4 -4 -4 -4 -3 -3 -2 -1 -1 -1 --------- Run | Scr Mat Mat Min Exi Min Mat Fac Low Low Dat Pro Fac Low Low Zio Dee Pro Fac Ext Cet Arc Hub Fac Upp Upp Zhi Pro Res Res Acc Com Ac0 Levels Raised 35 | . . 2 . . 1 2 2 . 1 1 2 3 1 . 1 1 3 1 2 . . 1 1 . . . 1 1 2 2 2 2 XP Earned 55580 | 3000 780 2240 500 200 1300 3189 2521 1211 1550 650 3336 4605 650 850 604 1795 4638 1003 3065 652 238 1237 954 143 187 152 1104 1562 3129 3588 3161 1786 XP Spent 55420 | 2750 . 1550 250 . 1070 3400 1720 1700 . . . . . . . 12945 1650 1105 4700 . . . 4400 . . 600 . 5550 1000 . 7845 3185 Upgrades 104 | 7 . 2 5 . 4 5 5 1 . . . . . . . 14 2 6 2 . . . 3 . . 1 . 2 10 . 28 7 Power Slot 1 | . . . . . . . . . . . . . . . . 1 . . . . . . . . . . . . . . . . Propulsion Slot 3 | 1 . . . . . 1 . . . . . . . . . 1 . . . . . . . . . . . . . . . . Utility Slot 12 | 1 . 1 . . . 1 1 1 . . . . . . . 4 . . 1 . . . 1 . . . . 1 . . . . Weapon Slot 2 | 1 . . . . 1 . . . . . . . . . . . . . . . . . . . . . . . . . . . Core Integrity 47 | . . . 1 . . . 1 . . . . . . . . 1 . . . . . . . . . . . . 10 . 27 7 Heat Dissipation 3 | . . . 1 . 1 . . . . . . . . . . 1 . . . . . . . . . . . . . . . . Mass Support 6 | 1 . . . . . 2 . . . . . . . . . . 1 . . . . . 1 . . 1 . . . . . . Inventory Capacity 7 | 2 . 1 . . . 1 . . . . . . . . . . 1 . 1 . . . . . . . . 1 . . . . Sight Range 1 | . . . . . 1 . . . . . . . . . . . . . . . . . . . . . . . . . . . Sensor Range 7 | . . . 2 . 1 . 1 . . . . . . . . 1 . 2 . . . . . . . . . . . . . . Terrain Scan Density 6 | . . . 1 . . . 2 . . . . . . . . 1 . 1 . . . . . . . . . . . . 1 . Ranged Accuracy 2 | 1 . . . . . . . . . . . . . . . 1 . . . . . . . . . . . . . . . . Hack Attack % 2 | . . . . . . . . . . . . . . . . . . 1 . . . . 1 . . . . . . . . . Hack Defense % 1 | . . . . . . . . . . . . . . . . . . 1 . . . . . . . . . . . . . . KI Resistance % 1 | . . . . . . . . . . . . . . . . 1 . . . . . . . . . . . . . . . . TH Resistance % 2 | . . . . . . . . . . . . . . . . 2 . . . . . . . . . . . . . . . . TH Damage % 1 | . . . . . . . . . . . . . . . . . . 1 . . . . . . . . . . . . . . Protomatter Created 4999 | . 31 131 . . 136 235 64 . 191 . 123 117 46 142 . 441 693 20 514 143 . 642 242 . 209 . 258 344 . 241 36 . Integrity Restored 10388 | . 91 216 . . 322 233 132 . 387 . 604 440 132 291 52 398 2249 . 1447 332 . 609 635 . 409 . 153 239 132 777 108 . Core 8190 | . 88 143 . . 188 196 132 . 387 . 459 352 87 64 52 274 1865 . 1028 221 . 477 533 . 318 . 119 190 132 777 108 . Parts 2198 | . 3 73 . . 134 37 . . . . 145 88 45 227 . 124 384 . 419 111 . 132 102 . 91 . 34 49 . . . . Protomatter Decayed 3505 | . . 57 . . . 101 . 55 55 . 61 144 . 37 . 282 80 . 551 . . 672 22 64 69 . 98 1089 . 68 . . Game ------ Seed TachyonCoreNanovents Manual? 0 Play Time 07:10:28 Cumulative 329.1 hours Start 2019.12.28 @ 16:50:28 End 2019.12.29 @ 03:55:36 Sessions 7 Manual Loads 0 Difficulty Rogue Special Mode Winter2019/RPGLIKE Game No. 131 Rogue 131 Adventurer 0 Explorer 0 Win Type - Total 9 Types 8/0/0/1/0/0/0 Lore% 85 Gallery% 83 Achievement% 64 Wizard Run 0 Options --------- ASCII 0 Keyboard 0 Movement Numpad Keybinds 0 Fullscreen 0 Font 14/Dina Map View 76x50 Tactical HUD 1 Map Filters NONE Filters NONE Steam 1 RUN: c0ee307c-6f33-47f0-aa32-fe06ac15ee0b